[Event "*** Titled Tuesday Blitz"]
[Site "Chess.com"]
[Date "2021.02.09"]
[Round "1"]
[White "capatl"]
[Black "MIJuanReyesRosa"]
[Result "1-0"]
[WhiteElo "2494"]
[BlackElo "2104"]
[TimeControl "180+1"]
[EndTime "10:08:36 PST"]
[Termination "capatl won on time"]

1. d4 {[%clk 0:03:00.9]} 1... c5 {[%clk 0:02:57.2]} 2. Nf3 {[%clk 0:03:01.8]}
2... cxd4 {[%clk 0:02:54.3]} 3. Nxd4 {[%clk 0:03:02.7]} 3... Nc6 {[%clk
0:02:54.5]} 4. g3 {[%clk 0:02:58.2]} 4... g6 {[%clk 0:02:53.9]} 5. Bg2 {[%clk
0:02:58.4]} 5... Bg7 {[%clk 0:02:53.6]} 6. c3 {[%clk 0:02:45]} 6... Nf6 {[%clk
0:02:51.6]} 7. O-O {[%clk 0:02:45]} 7... O-O {[%clk 0:02:50.8]} 8. Nd2 {[%clk
0:02:27.9]} 8... Nxd4 {[%clk 0:02:45.9]} 9. cxd4 {[%clk 0:02:27.5]} 9... d5
{[%clk 0:02:45.1]} 10. b3 {[%clk 0:02:04]} 10... Bf5 {[%clk 0:02:44.1]} 11. Bb2
{[%clk 0:02:03.8]} 11... Rc8 {[%clk 0:02:41.6]} 12. Rc1 {[%clk 0:02:03.3]} 12...
Qa5 {[%clk 0:02:36]} 13. a3 {[%clk 0:01:39.8]} 13... Bh6 {[%clk 0:02:21.9]} 14.
e3 {[%clk 0:01:35.2]} 14... Rxc1 {[%clk 0:02:15.6]} 15. Bxc1 {[%clk 0:01:34.3]}
15... Rc8 {[%clk 0:02:12.7]} 16. b4 {[%clk 0:01:34.2]} 16... Qc7 {[%clk
0:02:10.4]} 17. Nf3 {[%clk 0:01:20.6]} 17... Qc2 {[%clk 0:01:37]} 18. Ne5 {[%clk
0:01:14.5]} 18... Qxd1 {[%clk 0:01:30.1]} 19. Rxd1 {[%clk 0:01:15.4]} 19... Be4
{[%clk 0:01:24.1]} 20. Bf1 {[%clk 0:00:52.9]} 20... Bc2 {[%clk 0:01:17]} 21. Re1
{[%clk 0:00:50.4]} 21... Ne4 {[%clk 0:01:12.8]} 22. f3 {[%clk 0:00:42.5]} 22...
Nd6 {[%clk 0:01:07]} 23. Kf2 {[%clk 0:00:32.4]} 23... f6 {[%clk 0:01:04.4]} 24.
Nd3 {[%clk 0:00:29.5]} 24... Nc4 {[%clk 0:00:58.2]} 25. Nc5 {[%clk 0:00:27.6]}
25... b6 {[%clk 0:00:56.2]} 26. Ne6 {[%clk 0:00:27.5]} 26... Bf5 {[%clk
0:00:49.5]} 27. Nf4 {[%clk 0:00:26.5]} 27... Bxf4 {[%clk 0:00:43.3]} 28. gxf4
{[%clk 0:00:27.4]} 28... b5 {[%clk 0:00:39.2]} 29. e4 {[%clk 0:00:27]} 29...
dxe4 {[%clk 0:00:36.4]} 30. fxe4 {[%clk 0:00:27.9]} 30... Bg4 {[%clk 0:00:33.2]}
31. h3 {[%clk 0:00:26]} 31... Be6 {[%clk 0:00:31.2]} 32. d5 {[%clk 0:00:26.2]}
32... Bf7 {[%clk 0:00:30.9]} 33. Kf3 {[%clk 0:00:20.3]} 33... a6 {[%clk
0:00:30]} 34. Bxc4 {[%clk 0:00:20.1]} 34... bxc4 {[%clk 0:00:27.3]} 35. Re3
{[%clk 0:00:19.2]} 35... Kf8 {[%clk 0:00:26.4]} 36. Rc3 {[%clk 0:00:18.9]} 36...
Ke8 {[%clk 0:00:25.8]} 37. Ke3 {[%clk 0:00:19.4]} 37... Kd7 {[%clk 0:00:25.4]}
38. Kd4 {[%clk 0:00:20.3]} 38... g5 {[%clk 0:00:21.1]} 39. fxg5 {[%clk 0:00:20]}
39... fxg5 {[%clk 0:00:21.1]} 40. Bxg5 {[%clk 0:00:20.9]} 40... Bg6 {[%clk
0:00:18.2]} 41. e5 {[%clk 0:00:18.9]} 41... e6 {[%clk 0:00:17.1]} 42. Rxc4
{[%clk 0:00:17]} 42... Rxc4+ {[%clk 0:00:15.7]} 43. Kxc4 {[%clk 0:00:17.9]}
43... exd5+ {[%clk 0:00:15.3]} 44. Kxd5 {[%clk 0:00:18.8]} 44... Bf5 {[%clk
0:00:14.1]} 45. h4 {[%clk 0:00:19.1]} 45... Bd3 {[%clk 0:00:13.6]} 46. Bf6
{[%clk 0:00:20]} 46... Bb5 {[%clk 0:00:12.3]} 47. Kc5 {[%clk 0:00:20.9]} 47...
Ke6 {[%clk 0:00:11.6]} 48. Kb6 {[%clk 0:00:21.1]} 48... h5 {[%clk 0:00:10]} 49.
Ka5 {[%clk 0:00:22]} 49... Kf5 {[%clk 0:00:08.5]} 50. a4 {[%clk 0:00:22.9]}
50... Be2 {[%clk 0:00:07.5]} 51. Kb6 {[%clk 0:00:23]} 51... Ke6 {[%clk
0:00:06.2]} 52. Kc5 {[%clk 0:00:23.3]} 52... Bd3 {[%clk 0:00:05.9]} 53. b5
{[%clk 0:00:22.9]} 53... axb5 {[%clk 0:00:05.7]} 54. a5 {[%clk 0:00:23.8]} 54...
b4 {[%clk 0:00:05]} 55. Kxb4 {[%clk 0:00:24.7]} 55... Ba6 {[%clk 0:00:04.2]} 56.
Kc5 {[%clk 0:00:25.2]} 56... Bc8 {[%clk 0:00:02.7]} 57. Kb6 {[%clk 0:00:26.1]}
57... Kf5 {[%clk 0:00:02.2]} 58. a6 {[%clk 0:00:26]} 58... Be6 {[%clk
0:00:01.2]} 59. Kc6 {[%clk 0:00:24.8]} 59... Bd5+ {[%clk 0:00:02.1]} 60. Kxd5
{[%clk 0:00:24.9]} 60... Kg6 {[%clk 0:00:02.8]} 61. Ke6 {[%clk 0:00:24.8]} 61...
Kh7 {[%clk 0:00:02.7]} 62. Kf5 {[%clk 0:00:24.7]} 62... Kg8 {[%clk 0:00:02.5]}
63. Kg6 {[%clk 0:00:23.6]} 63... Kf8 {[%clk 0:00:01.8]} 64. e6 {[%clk
0:00:23.5]} 64... Kg8 {[%clk 0:00:01.3]} 65. a7 {[%clk 0:00:24]} 1-0

[Event "*** Titled Tuesday Blitz"]
[Site "Chess.com"]
[Date "2021.02.09"]
[Round "1"]
[White "SanchezKelvin"]
[Black "wonderfultime"]
[Result "0-1"]
[WhiteElo "2457"]
[BlackElo "2926"]
[TimeControl "180+1"]
[EndTime "10:08:38 PST"]
[Termination "wonderfultime won by checkmate"]

1. d4 {[%clk 0:02:57.9]} 1... d5 {[%clk 0:02:49]} 2. c4 {[%clk 0:02:57.4]} 2...
c6 {[%clk 0:02:47.7]} 3. Nf3 {[%clk 0:02:56.4]} 3... Nf6 {[%clk 0:02:34.2]} 4.
Nc3 {[%clk 0:02:55.9]} 4... a6 {[%clk 0:02:34.5]} 5. e3 {[%clk 0:02:52.2]} 5...
Bf5 {[%clk 0:02:32.7]} 6. Qb3 {[%clk 0:02:51.3]} 6... Ra7 {[%clk 0:02:30.9]} 7.
c5 {[%clk 0:02:46]} 7... Nbd7 {[%clk 0:02:29.8]} 8. Nh4 {[%clk 0:02:43.5]} 8...
Be4 {[%clk 0:02:29.7]} 9. f4 {[%clk 0:02:34.3]} 9... e6 {[%clk 0:02:25.6]} 10.
Nf3 {[%clk 0:02:31.2]} 10... Bg6 {[%clk 0:02:15.6]} 11. Be2 {[%clk 0:02:29.8]}
11... Be7 {[%clk 0:02:15.8]} 12. O-O {[%clk 0:02:29.6]} 12... O-O {[%clk
0:02:16.1]} 13. Bd2 {[%clk 0:02:29.9]} 13... Ne4 {[%clk 0:02:03.8]} 14. Na4
{[%clk 0:02:21.3]} 14... Bh5 {[%clk 0:01:54.5]} 15. Be1 {[%clk 0:02:12.6]} 15...
f5 {[%clk 0:01:46.7]} 16. Nb6 {[%clk 0:01:50.3]} 16... Nxb6 {[%clk 0:01:42.4]}
17. Ba5 {[%clk 0:01:45.3]} 17... Ra8 {[%clk 0:01:29.2]} 18. Bxb6 {[%clk
0:01:34.4]} 18... Qc8 {[%clk 0:01:25.4]} 19. Qc2 {[%clk 0:01:28.6]} 19... Bxf3
{[%clk 0:01:21.2]} 20. gxf3 {[%clk 0:01:27.3]} 20... Nf6 {[%clk 0:01:21.1]} 21.
a4 {[%clk 0:01:24.7]} 21... Bd8 {[%clk 0:01:20.9]} 22. Bxd8 {[%clk 0:01:11.2]}
22... Qxd8 {[%clk 0:01:21.8]} 23. b4 {[%clk 0:01:11.1]} 23... Nh5 {[%clk
0:01:16]} 24. Qd2 {[%clk 0:01:06.4]} 24... Rf6 {[%clk 0:01:12]} 25. Kh1 {[%clk
0:01:06.2]} 25... Rh6 {[%clk 0:01:11.1]} 26. Qe1 {[%clk 0:01:03.3]} 26... Kh8
{[%clk 0:00:57.1]} 27. Rg1 {[%clk 0:01:02.8]} 27... Qe7 {[%clk 0:00:56.8]} 28.
Qf2 {[%clk 0:01:01.6]} 28... Rg8 {[%clk 0:00:53.9]} 29. Rg5 {[%clk 0:00:59.1]}
29... Nf6 {[%clk 0:00:50.8]} 30. b5 {[%clk 0:00:56.6]} 30... a5 {[%clk
0:00:49.7]} 31. bxc6 {[%clk 0:00:56.1]} 31... bxc6 {[%clk 0:00:49.8]} 32. Rb1
{[%clk 0:00:56.4]} 32... Qc7 {[%clk 0:00:49.2]} 33. Bd3 {[%clk 0:00:51.9]} 33...
Nd7 {[%clk 0:00:39]} 34. Rgg1 {[%clk 0:00:46.7]} 34... Rh5 {[%clk 0:00:33.9]}
35. Qb2 {[%clk 0:00:45.4]} 35... Rb8 {[%clk 0:00:24.2]} 36. Qg2 {[%clk
0:00:44.4]} 36... Rg8 {[%clk 0:00:24.2]} 37. Qb2 {[%clk 0:00:42.1]} 37... g5
{[%clk 0:00:18]} 38. fxg5 {[%clk 0:00:38.4]} 38... Rh3 {[%clk 0:00:14.7]} 39.
Qg2 {[%clk 0:00:34]} 39... Rh5 {[%clk 0:00:11.1]} 40. f4 {[%clk 0:00:33.9]}
40... Nf8 {[%clk 0:00:11.5]} 41. Qf3 {[%clk 0:00:31.2]} 41... Rh4 {[%clk
0:00:10.7]} 42. Rb6 {[%clk 0:00:27.4]} 42... Nd7 {[%clk 0:00:11]} 43. Rb3 {[%clk
0:00:26.9]} 43... Nf8 {[%clk 0:00:10.6]} 44. Rgb1 {[%clk 0:00:26.7]} 44... Qf7
{[%clk 0:00:03.5]} 45. Rb7 {[%clk 0:00:24.8]} 45... Qg6 {[%clk 0:00:04]} 46. Re7
{[%clk 0:00:22.2]} 46... h6 {[%clk 0:00:04.2]} 47. Rg1 {[%clk 0:00:20]} 47...
hxg5 {[%clk 0:00:04.2]} 48. Rxg5 {[%clk 0:00:19.5]} 48... Qh6 {[%clk 0:00:04.8]}
49. Rxg8+ {[%clk 0:00:18.2]} 49... Kxg8 {[%clk 0:00:05.7]} 50. Qg3+ {[%clk
0:00:18.1]} 50... Rg4 {[%clk 0:00:06.4]} 51. Qf2 {[%clk 0:00:15.2]} 51... Qf6
{[%clk 0:00:05.5]} 52. Ra7 {[%clk 0:00:14.3]} 52... Ng6 {[%clk 0:00:05.7]} 53.
Ra8+ {[%clk 0:00:12.9]} 53... Kg7 {[%clk 0:00:05.8]} 54. Be2 {[%clk 0:00:13.1]}
54... Rh4 {[%clk 0:00:05.9]} 55. Ra7+ {[%clk 0:00:12.4]} 55... Kf8 {[%clk
0:00:05.9]} 56. Bf3 {[%clk 0:00:12.8]} 56... Rh6 {[%clk 0:00:05.1]} 57. Qb2
{[%clk 0:00:12.9]} 57... Kg8 {[%clk 0:00:04.1]} 58. Qb8+ {[%clk 0:00:12.6]}
58... Nf8 {[%clk 0:00:04.8]} 59. Qe5 {[%clk 0:00:13]} 59... Qg6 {[%clk
0:00:03.8]} 60. Rb7 {[%clk 0:00:11.1]} 60... Rh3 {[%clk 0:00:03.9]} 61. Bg2
{[%clk 0:00:10.7]} 61... Rh4 {[%clk 0:00:04.4]} 62. Rb2 {[%clk 0:00:10.3]} 62...
Rg4 {[%clk 0:00:04.7]} 63. Rf2 {[%clk 0:00:09.8]} 63... Qh6 {[%clk 0:00:04.7]}
64. Qd6 {[%clk 0:00:09.1]} 64... Qh4 {[%clk 0:00:05.1]} 65. Kg1 {[%clk
0:00:09.6]} 65... Rg7 {[%clk 0:00:04.7]} 66. Kf1 {[%clk 0:00:09.5]} 66... Qg4
{[%clk 0:00:05]} 67. Qe5 {[%clk 0:00:08.2]} 67... Qd1# {[%clk 0:00:05.3]} 0-1

[Event "*** Titled Tuesday Blitz"]
[Site "Chess.com"]
[Date "2021.02.09"]
[Round "1"]
[White "PowerThinking2650"]
[Black "Rsnr"]
[Result "0-1"]
[WhiteElo "2402"]
[BlackElo "2768"]
[TimeControl "180+1"]
[EndTime "10:08:38 PST"]
[Termination "Rsnr won by resignation"]

1. e4 {[%clk 0:02:54.8]} 1... c6 {[%clk 0:02:59.7]} 2. d4 {[%clk 0:02:54.3]}
2... d5 {[%clk 0:03:00.6]} 3. Nc3 {[%clk 0:02:54.9]} 3... dxe4 {[%clk
0:03:00.4]} 4. Nxe4 {[%clk 0:02:55.8]} 4... Bf5 {[%clk 0:03:00.9]} 5. Ng3 {[%clk
0:02:55.9]} 5... Bg6 {[%clk 0:03:01.4]} 6. h4 {[%clk 0:02:56.6]} 6... h6 {[%clk
0:03:01.6]} 7. Nf3 {[%clk 0:02:57.3]} 7... e6 {[%clk 0:03:01.9]} 8. h5 {[%clk
0:02:53.6]} 8... Bh7 {[%clk 0:03:02.3]} 9. Bd3 {[%clk 0:02:54.3]} 9... Bxd3
{[%clk 0:03:02.8]} 10. Qxd3 {[%clk 0:02:55.1]} 10... Nf6 {[%clk 0:03:03.7]} 11.
Bf4 {[%clk 0:02:55.1]} 11... Bd6 {[%clk 0:03:01.9]} 12. Bxd6 {[%clk 0:02:54]}
12... Qxd6 {[%clk 0:03:02.8]} 13. O-O-O {[%clk 0:02:54.4]} 13... Nbd7 {[%clk
0:03:03]} 14. Kb1 {[%clk 0:02:53.5]} 14... O-O {[%clk 0:02:53.3]} 15. Qe2 {[%clk
0:02:53.6]} 15... a5 {[%clk 0:02:52.4]} 16. Ne5 {[%clk 0:02:53.7]} 16... a4
{[%clk 0:02:53.1]} 17. a3 {[%clk 0:02:48.1]} 17... b5 {[%clk 0:02:50.5]} 18. c3
{[%clk 0:02:46.3]} 18... Rac8 {[%clk 0:02:44.9]} 19. f4 {[%clk 0:02:39.4]} 19...
Nd5 {[%clk 0:02:17.9]} 20. Ne4 {[%clk 0:02:21.8]} 20... Qe7 {[%clk 0:02:17.7]}
21. Qf3 {[%clk 0:01:56.7]} 21... Rfd8 {[%clk 0:01:53.6]} 22. g4 {[%clk
0:01:53.1]} 22... f5 {[%clk 0:01:19.8]} 23. gxf5 {[%clk 0:01:31.2]} 23... exf5
{[%clk 0:01:20.7]} 24. Ng3 {[%clk 0:01:31.5]} 24... Nxe5 {[%clk 0:01:07.3]} 25.
fxe5 {[%clk 0:01:32.4]} 25... f4 {[%clk 0:01:07.9]} 26. Nf5 {[%clk 0:01:28.9]}
26... Qe6 {[%clk 0:01:08.2]} 27. Qg4 {[%clk 0:01:22.4]} 27... Rc7 {[%clk
0:00:57.6]} 28. Rhg1 {[%clk 0:01:20.4]} 28... Rdd7 {[%clk 0:00:57.6]} 29. Rdf1
{[%clk 0:01:09.7]} 29... Rf7 {[%clk 0:00:52.2]} 30. Ne3 {[%clk 0:00:28.1]} 30...
Nxc3+ {[%clk 0:00:39.4]} 31. Kc1 {[%clk 0:00:19.6]} 31... Qxg4 {[%clk
0:00:38.7]} 32. Nxg4 {[%clk 0:00:19.3]} 32... Ne2+ {[%clk 0:00:39.3]} 33. Kd2
{[%clk 0:00:19.4]} 33... Nxg1 {[%clk 0:00:40.2]} 34. Rxg1 {[%clk 0:00:18.9]}
34... Kh7 {[%clk 0:00:40.8]} 35. Kd3 {[%clk 0:00:18.7]} 35... f3 {[%clk
0:00:39.3]} 36. Rf1 {[%clk 0:00:18.8]} 36... Rf4 {[%clk 0:00:39.7]} 37. Nf2
{[%clk 0:00:17.5]} 37... Rd7 {[%clk 0:00:39.9]} 38. Ne4 {[%clk 0:00:17.9]} 38...
c5 {[%clk 0:00:39.6]} 39. Ke3 {[%clk 0:00:15.2]} 39... Rh4 {[%clk 0:00:30.2]}
40. dxc5 {[%clk 0:00:15.4]} 40... Re7 {[%clk 0:00:26.3]} 41. Rxf3 {[%clk
0:00:13.7]} 41... Rxe5 {[%clk 0:00:26.4]} 42. Rf4 {[%clk 0:00:14.4]} 42... Rhxh5
{[%clk 0:00:23.6]} 43. Rf7 {[%clk 0:00:11.2]} 43... Rh4 {[%clk 0:00:19.8]} 44.
Rf4 {[%clk 0:00:10.9]} 44... Rhh5 {[%clk 0:00:08.5]} 45. c6 {[%clk 0:00:09.7]}
45... Re6 {[%clk 0:00:06]} 46. c7 {[%clk 0:00:07.3]} 46... Rc6 {[%clk
0:00:06.5]} 47. Rf7 {[%clk 0:00:07.5]} 47... Rh2 {[%clk 0:00:05.8]} 48. Nd6
{[%clk 0:00:04.8]} 48... Rhc2 {[%clk 0:00:04.5]} 49. c8=Q {[%clk 0:00:03.9]}
49... Rxc8 {[%clk 0:00:05.4]} 50. Nxc8 {[%clk 0:00:04.5]} 50... Rxc8 {[%clk
0:00:06.3]} 51. Rb7 {[%clk 0:00:04.9]} 51... Rc5 {[%clk 0:00:06.7]} 52. Kd4
{[%clk 0:00:04.9]} 52... Rg5 {[%clk 0:00:07.3]} 53. Ke4 {[%clk 0:00:05.4]} 53...
h5 {[%clk 0:00:07.6]} 54. Kf4 {[%clk 0:00:06]} 54... Kh6 {[%clk 0:00:08]} 55.
Rb6+ {[%clk 0:00:05.9]} 55... g6 {[%clk 0:00:08.7]} 56. Rb8 {[%clk 0:00:06.1]}
56... Rf5+ {[%clk 0:00:09.4]} 57. Kg3 {[%clk 0:00:06.1]} 57... Kg5 {[%clk
0:00:09.6]} 58. Rb7 {[%clk 0:00:05]} 58... h4+ {[%clk 0:00:09.6]} 59. Kh3 {[%clk
0:00:05.1]} 59... Rf3+ {[%clk 0:00:10.1]} 60. Kh2 {[%clk 0:00:05.3]} 60... Rb3
{[%clk 0:00:11]} 61. Rb6 {[%clk 0:00:05.2]} 61... Rxb2+ {[%clk 0:00:11.4]} 62.
Kh3 {[%clk 0:00:05.8]} 62... Rb3+ {[%clk 0:00:12.1]} 63. Kh2 {[%clk 0:00:05.8]}
63... Kh5 {[%clk 0:00:12.9]} 64. Rc6 {[%clk 0:00:05.2]} 64... g5 {[%clk
0:00:13.3]} 65. Rc8 {[%clk 0:00:05.4]} 65... Rxa3 {[%clk 0:00:13.4]} 66. Rh8+
{[%clk 0:00:06.3]} 66... Kg4 {[%clk 0:00:13.7]} 67. Rb8 {[%clk 0:00:06.6]} 67...
Rb3 {[%clk 0:00:14.1]} 68. Rb7 {[%clk 0:00:06.4]} 68... Rb2+ {[%clk 0:00:14.3]}
69. Kh1 {[%clk 0:00:07]} 69... a3 {[%clk 0:00:15.2]} 70. Ra7 {[%clk 0:00:07.1]}
70... a2 {[%clk 0:00:15.8]} 71. Ra4+ {[%clk 0:00:07.9]} 71... bxa4 {[%clk
0:00:15.2]} 0-1

[Event "*** Titled Tuesday Blitz"]
[Site "Chess.com"]
[Date "2021.02.09"]
[Round "1"]
[White "SirStrateg"]
[Black "Darius321"]
[Result "1-0"]
[WhiteElo "2576"]
[BlackElo "2271"]
[TimeControl "180+1"]
[EndTime "10:08:40 PST"]
[Termination "SirStrateg won by resignation"]

1. e4 {[%clk 0:02:45.1]} 1... c5 {[%clk 0:02:57.4]} 2. Nf3 {[%clk 0:02:42.2]}
2... g6 {[%clk 0:02:57.7]} 3. c3 {[%clk 0:02:40]} 3... Bg7 {[%clk 0:02:57.2]} 4.
d4 {[%clk 0:02:40.1]} 4... cxd4 {[%clk 0:02:58]} 5. cxd4 {[%clk 0:02:40]} 5...
d5 {[%clk 0:02:58.7]} 6. exd5 {[%clk 0:02:40.4]} 6... Nf6 {[%clk 0:02:57.6]} 7.
Bb5+ {[%clk 0:02:39.5]} 7... Bd7 {[%clk 0:02:53.9]} 8. Bc4 {[%clk 0:02:39.2]}
8... O-O {[%clk 0:02:53.9]} 9. Nc3 {[%clk 0:02:39.1]} 9... Na6 {[%clk
0:02:47.5]} 10. Bg5 {[%clk 0:02:33.4]} 10... Rc8 {[%clk 0:02:47.1]} 11. Qb3
{[%clk 0:02:22.5]} 11... Bf5 {[%clk 0:02:33]} 12. Bxf6 {[%clk 0:02:12.1]} 12...
Bxf6 {[%clk 0:02:28.7]} 13. O-O {[%clk 0:02:12.4]} 13... Nc7 {[%clk 0:02:19.5]}
14. a4 {[%clk 0:02:03.3]} 14... Ne8 {[%clk 0:01:54]} 15. Rfe1 {[%clk 0:02:01.4]}
15... Nd6 {[%clk 0:01:53.5]} 16. Bf1 {[%clk 0:02:02]} 16... Qb6 {[%clk
0:01:38.3]} 17. Qxb6 {[%clk 0:01:58.6]} 17... axb6 {[%clk 0:01:39.2]} 18. Ne5
{[%clk 0:01:58.9]} 18... Rfd8 {[%clk 0:01:17.2]} 19. h3 {[%clk 0:01:53]} 19...
Bc2 {[%clk 0:01:16.5]} 20. Ra3 {[%clk 0:01:42.1]} 20... h5 {[%clk 0:01:14.4]}
21. Re2 {[%clk 0:01:38.1]} 21... Bf5 {[%clk 0:01:04.9]} 22. Re1 {[%clk
0:01:38.4]} 22... Kg7 {[%clk 0:01:01.6]} 23. g4 {[%clk 0:01:36.2]} 23... hxg4
{[%clk 0:01:00.8]} 24. hxg4 {[%clk 0:01:36.4]} 24... Bd7 {[%clk 0:00:59.7]} 25.
f3 {[%clk 0:01:29.5]} 25... Bg5 {[%clk 0:00:55.3]} 26. Kg2 {[%clk 0:01:24.5]}
26... Bd2 {[%clk 0:00:50.2]} 27. Rd1 {[%clk 0:01:19.4]} 27... Bxc3 {[%clk
0:00:49.6]} 28. bxc3 {[%clk 0:01:18.7]} 28... Ra8 {[%clk 0:00:44.8]} 29. Rda1
{[%clk 0:01:13.1]} 29... Be8 {[%clk 0:00:43.5]} 30. Nc4 {[%clk 0:01:01.3]} 30...
Nxc4 {[%clk 0:00:38.2]} 31. Bxc4 {[%clk 0:01:01.4]} 31... Ra5 {[%clk 0:00:37.2]}
32. Kf2 {[%clk 0:00:58.8]} 32... Rc8 {[%clk 0:00:36.8]} 33. Bd3 {[%clk
0:00:48.3]} 33... Rxd5 {[%clk 0:00:35.2]} 34. Rb1 {[%clk 0:00:42]} 34... Rd6
{[%clk 0:00:33.3]} 35. Ke3 {[%clk 0:00:41.8]} 35... Ra8 {[%clk 0:00:32.9]} 36.
Be4 {[%clk 0:00:40]} 36... Rxa4 {[%clk 0:00:32]} 37. Rxa4 {[%clk 0:00:38.5]}
37... Bxa4 {[%clk 0:00:32.9]} 38. Bxb7 {[%clk 0:00:37.8]} 38... f5 {[%clk
0:00:31.2]} 39. g5 {[%clk 0:00:36.6]} 39... Bc6 {[%clk 0:00:26.7]} 40. Rxb6
{[%clk 0:00:34.5]} 40... Bxb7 {[%clk 0:00:24.6]} 41. Rxb7 {[%clk 0:00:34.6]}
41... Kf7 {[%clk 0:00:24.3]} 42. c4 {[%clk 0:00:31]} 42... Ra6 {[%clk
0:00:24.9]} 43. Rd7 {[%clk 0:00:29.4]} 43... Ra1 {[%clk 0:00:24.3]} 44. c5
{[%clk 0:00:29.2]} 44... Ke6 {[%clk 0:00:23.5]} 45. Rd8 {[%clk 0:00:28.8]} 45...
Rc1 {[%clk 0:00:22.7]} 46. Kf4 {[%clk 0:00:26.5]} 46... Rc4 {[%clk 0:00:20.4]}
47. Ke3 {[%clk 0:00:25]} 47... Rc1 {[%clk 0:00:20]} 48. f4 {[%clk 0:00:24.6]}
48... Rd1 {[%clk 0:00:15.5]} 49. c6 {[%clk 0:00:23.6]} 49... Rc1 {[%clk
0:00:15.6]} 50. d5+ {[%clk 0:00:23.8]} 50... Kf7 {[%clk 0:00:14.6]} 51. Kd4
{[%clk 0:00:24.2]} 51... e6 {[%clk 0:00:10.9]} 52. dxe6+ {[%clk 0:00:19.6]}
52... Kxe6 {[%clk 0:00:10.7]} 53. Rg8 {[%clk 0:00:19.8]} 53... Kf7 {[%clk
0:00:08.7]} 54. Rc8 {[%clk 0:00:20]} 54... Ke6 {[%clk 0:00:08.4]} 55. Rf8 {[%clk
0:00:17.4]} 55... Ke7 {[%clk 0:00:05.7]} 56. Rf6 {[%clk 0:00:17.3]} 56... Rf1
{[%clk 0:00:02.5]} 57. Ke3 {[%clk 0:00:14]} 57... Re1+ {[%clk 0:00:02.6]} 58.
Kf2 {[%clk 0:00:14.4]} 58... Re4 {[%clk 0:00:02.7]} 59. Kf3 {[%clk 0:00:15]}
59... Rc4 {[%clk 0:00:02.2]} 60. Rxg6 {[%clk 0:00:15.4]} 60... Rc3+ {[%clk
0:00:02.7]} 61. Ke2 {[%clk 0:00:15.4]} 61... Rc4 {[%clk 0:00:03.6]} 62. Ke3
{[%clk 0:00:15.8]} 62... Rc3+ {[%clk 0:00:03.1]} 63. Kd4 {[%clk 0:00:16]} 63...
Rf3 {[%clk 0:00:03.2]} 64. Ke5 {[%clk 0:00:16.4]} 64... Rc3 {[%clk 0:00:02.5]}
65. Kxf5 {[%clk 0:00:16.2]} 65... Rc5+ {[%clk 0:00:03.4]} 66. Kg4 {[%clk
0:00:16.6]} 66... Kf7 {[%clk 0:00:03.6]} 67. Rd6 {[%clk 0:00:16.7]} 67... Kg7
{[%clk 0:00:04.3]} 68. Rd7+ {[%clk 0:00:16.8]} 68... Kg6 {[%clk 0:00:04.3]} 69.
f5+ {[%clk 0:00:16.8]} 69... Rxf5 {[%clk 0:00:03.7]} 70. Rg7+ {[%clk 0:00:17.5]}
70... Kxg7 {[%clk 0:00:03.3]} 71. Kxf5 {[%clk 0:00:18.4]} 1-0